[Event "ESP-ch U2000 2024"]
[Site "Albacete"]
[Date "2024.08.27"]
[Round "2.2"]
[White "Marin Lopez, Juan Jose"]
[Black "Perez Gonzalez, Daniel"]
[Result "1/2-1/2"]
[ECO "B00"]
[WhiteElo "1895"]
[BlackElo "1981"]
[Annotator "TA"]
[PlyCount "69"]
[EventDate "2024.08.27"]
[EventType "swiss"]
[EventCountry "ESP"]
[SourceTitle "playchess.com"]
[Source "ChessBase"]
[SourceQuality "1"]
[TimeControl "5400+30"]

{[%evp 9,69,49,44,50,37,13,41,12,45,54,68,31,41,41,42,46,37,42,78,94,104,75,72,72,92,62,95,18,16,31,38,39,58,42,50,47,47,37,33,33,25,42,43,0,29,0,39,38,39,38,38,0,50,47,42,-5,74,82,107,107,135,107]} 1. e4 {[%emt 0:02:19]} Nc6 {[%emt 0:00:21]} 2. Nf3 {[%emt 0:01:08]} g6 {[%emt 0:00:06]} 3. d4 {[%emt 0:01:37][%cal Bd2d4,Bd4d5][%mdl 32]} d6 {[%emt 0:00:05]} 4. d5 {[%emt 0:02:56]} Nb8 {[%emt 0:00:09][%cal Bc6b8,Bb8d7,Bd7c5][%mdl 32]} 5. Nc3 {[%emt 0:02:35]} Bg7 {[%emt 0:00:07]} 6. Be3 {[%emt 0:04:30]} Nf6 {[%emt 0:03:42]} 7. Qd2 {[%emt 0:03:57]} e5 {[%emt 0:06:54]} 8. Bh6 {[%emt 0:13:35] White is slightly better.} Bxh6 {[%emt 0:04:58]} 9. Qxh6 {[%emt 0:00:03]} Nbd7 {[%emt 0:03:41]} 10. O-O-O {[%emt 0:08:50] White is much more active.} a6 {[%emt 0:05:16]} 11. h3 {[%emt 0:10:01]} Qe7 {[%emt 0:09:10]} 12. Nd2 {[%emt 0:06:43]} Qf8 {[%emt 0:09:29]} 13. Qe3 {[%emt 0:03:09]} Qg7 {[%emt 0:01:14]} 14. Be2 {[%emt 0:04:06]} Nc5 {[%emt 0:08:29]} 15. b4 {[%emt 0:01:18]} Ncd7 {[%emt 0:00:40]} 16. g4 {[%emt 0:04:22]} h5 {[%emt 0:09:47]} 17. Rdg1 {[%emt 0:08:28]} Nb6 {[%emt 0:02:28]} 18. Qg5 {[%emt 0:06:34]} (18. g5 $16 Nh7 19. a4) 18... hxg4 $11 {[%emt 0:05:08]} 19. hxg4 {[%emt 0:01:15]} Rxh1 {[%emt 0:06:07]} 20. Rxh1 {[%emt 0:00:02]} Bd7 {[%emt 0:00:11] Prevents a4.} 21. f3 {[%emt 0:02:37]} O-O-O {[%emt 0:02:43]} 22. Qh6 {[%emt 0:00:26]} Rg8 {[%emt 0:02:15]} 23. Qxg7 {[%emt 0:04:19]} Rxg7 {[%emt 0:00:01]} 24. Rh8+ {[%emt 0:00:56]} Rg8 {[%emt 0:03:24]} 25. Rh6 {[%emt 0:00:48]} Rg7 {[%emt 0:01:38]} 26. Rh8+ {[%emt 0:00:03]} Be8 {[%emt 0:01:09]} 27. Nc4 {[%emt 0:02:01]} Nbd7 {[%emt 0:01:24]} 28. Kd2 {[%emt 0:00:33]} Rh7 {[%emt 0:00:16]} 29. Rxh7 {[%emt 0:00:11]} Nxh7 {[%emt 0:00:00]} 30. Ke3 {[%emt 0:00:33]} f6 {[%emt 0:03:25]} (30... b5 $11 31. Na5 Nb6) 31. a4 $14 {[%emt 0:01:42][%cal Ba2a4,Ba4a5][%mdl 32]} Nhf8 {[%emt 0:03:10]} 32. f4 {[%emt 0:01:35]} (32. a5 $14) 32... g5 {[%emt 0:00:58] [#]} (32... exf4+ $11 {keeps the balance.} 33. Kxf4 g5+ 34. Kg3 Nb6 35. Nxb6+ cxb6) 33. f5 $1 $16 {[%emt 0:00:14]} Kb8 {[%emt 0:01:32]} 34. a5 {[%emt 0:00:43]} Ka7 {[%emt 0:00:32]} 35. Na3 {[%emt 0:00:39] Weighted Error Value: White=0.15 (very precise) /Black=0.18 (very precise) .  Mistake:       	White=2     	Black=2      Inaccurate:     	White=6     	Black=6      OK:         	White=10    	Black=9      Strong:       	White=1     	---} 1/2-1/2

[Event "ESP-ch U2000 2024"]
[Site "Albacete"]
[Date "2024.08.27"]
[Round "2.3"]
[White "Perez Garcia, Juan Angel"]
[Black "Garcia Almeida, Aitana Maria"]
[Result "0-1"]
[ECO "B06"]
[WhiteElo "1979"]
[BlackElo "1878"]
[Annotator "TA"]
[PlyCount "100"]
[EventDate "2024.08.27"]
[EventType "swiss"]
[EventCountry "ESP"]
[SourceTitle "playchess.com"]
[Source "ChessBase"]
[SourceQuality "1"]
[TimeControl "5400+30"]

{[%evp 11,100,32,68,33,55,46,57,54,63,43,46,57,41,30,29,29,34,22,62,72,137,102,225,238,314,344,328,293,490,288,657,638,563,350,333,53,60,-227,114,0,0,-239,-239,-247,-245,-381,-372,-478,-461,-477,-461,-479,-477,-470,-385,-564,-413,-438,-501,-618,-664,-734,-689,-727,-504,-479,0,-533,-533,-535,-534,-587,-572,-820,-706,-1023,-978,-1829,-1829,-5916,-5438,-29983,-1185,-29994,-29995,-29995,-29989,-29995,-29986,-29986,-29987]} 1. d4 {[%emt 0:00:05]} g6 {[%emt 0:00:23]} 2. Nc3 {[%emt 0:00:51]} Bg7 {[%emt 0:00:07]} 3. e4 {[%emt 0:00:15]} d6 {[%emt 0:00:08]} 4. Be3 {[%emt 0:01:50]} Nf6 {[%emt 0:01:45]} 5. Qd2 {[%emt 0:00:59]} O-O {[%emt 0:03:37]} 6. Bh6 {[%emt 0:01:19]} c6 {[%emt 0:07:40]} 7. Bxg7 {[%emt 0:00:43]} Kxg7 {[%emt 0:00:03]} 8. f4 {[%emt 0:00:38]} e5 {[%emt 0:08:27]} 9. O-O-O {[%emt 0:02:02] White is slightly better.} (9. dxe5 dxe5 10. Bd3 exf4 $11) 9... exf4 {[%emt 0:04:34]} 10. Qxf4 {[%emt 0:01:28]} d5 {[%emt 0:03:43]} 11. e5 {[%emt 0:02:33]} Nh5 {[%emt 0:01:46]} 12. Qe3 {[%emt 0:02:33]} Kg8 {[%emt 0:01:54]} 13. Be2 $36 {[%emt 0:00:59][%mdl 2048] White has good play.} Ng7 {[%emt 0:00:06]} 14. g4 {[%emt 0:01:00]} f5 {[%emt 0:03:22]} 15. h3 {[%emt 0:04:31]} Be6 {[%emt 0:10:28]} (15... Qe7 $142) 16. Nf3 {[%emt 0:02:24] Black must now prevent Qh6.} Nd7 {[%emt 0:02:04] [#]} (16... fxg4 $2 17. hxg4 Rxf3 18. Bxf3 $18 (18. Qxf3 Qg5+ 19. Kb1 Nd7 $18)) (16... f4 $16 17. Qd2 Qe7) 17. Qh6 $1 $18 {[%emt 0:02:14]} Re8 {[%emt 0:07:48]} 18. Ng5 {[%emt 0:04:50]} Nf8 {[%emt 0:00:15]} 19. Rdf1 {[%emt 0:00:50] Hoping for h4.} Bd7 $2 {[%emt 0:02:25]} (19... Qb6 20. Rf4 Bc8) 20. Rhg1 {[%emt 0:04:43]} (20. h4 $142) 20... Qc8 $2 {[%emt 0:04:32]} (20... Re7 21. Bd3 a5 22. gxf5 Bxf5 23. Bxf5 gxf5 (23... Nxf5 $2 24. Rxf5 Qc7 25. Rf6 $18)) 21. Bd3 {[%emt 0:11:38]} Re7 {[%emt 0:02:00]} 22. e6 {[%emt 0:03:22]} Bxe6 {[%emt 0:01:53] [#]} 23. Nxh7 $2 {[%emt 0:11:46]} Nxh7 $14 {[%emt 0:04:08]} 24. gxf5 $4 {[%emt 0:01:04][%mdl 8192]} (24. Qxg6 $14 {keeps the upper hand.} Bf7 25. Qh6) 24... gxf5 $2 {[%emt 0:04:25]} (24... Bxf5 $19 25. Bxf5 Nxf5 (25... gxf5 26. Ne2 $17) 26. Rxg6+ Kh8) 25. Re1 {[%emt 0:05:33]} (25. Ne2 $16 Qf8 26. Rxg7+ (26. Nf4 Rae8 $11) 26... Rxg7 (26... Qxg7 $2 27. Rg1 $18) 27. Qxe6+ Qf7 28. Qd6 (28. Qxf7+ Kxf7 29. Rxf5+ Ke7 $17)) 25... Qd7 $11 {[%emt 0:02:12]} 26. Rxg7+ $2 {[%emt 0:11:34] Black keeps a firm grip on the game.} Rxg7 $19 {[%emt 0:00:53]} 27. Rxe6 {[%emt 0:00:15]} Rf8 {[%emt 0:02:30]} 28. Re5 {[%emt 0:04:03]} (28. Ne2 {is a better defense.}) 28... Ng5 {[%emt 0:01:46]} 29. b3 {[%emt 0:01:03]} Nf7 {[%emt 0:00:33][%csl LRe5,LRh6]} 30. Qe6 {[%emt 0:01:04]} Qxe6 {[%emt 0:00:23]} 31. Rxe6 {[%emt 0:00:06]} Ng5 {[%emt 0:00:16][%csl LRe6,LRh3]} 32. Re5 {[%emt 0:00:48]} Ne4 {[%emt 0:00:10]} (32... Nxh3 33. Rxf5 Rxf5 34. Bxf5 $19) (32... Nf3 33. Rxf5 Rxf5 (33... Nxd4 $2 34. Re5 $19) 34. Bxf5 $19) 33. Nd1 {[%emt 0:01:51]} (33. Kb2 $142) 33... Rh7 {[%emt 0:00:57]} 34. Ne3 {[%emt 0:00:36]} f4 {[%emt 0:01:10]} (34... Rxh3 35. Nxf5 Rf6 36. Ne7+ Kf7 37. Nc8 $19) 35. Nf5 {[%emt 0:00:34]} Rxh3 {[%emt 0:01:01]} 36. Ne7+ {[%emt 0:01:21]} Kh7 {[%emt 0:00:26]} 37. Nf5 {[%emt 0:05:10]} Rf7 {[%emt 0:02:33]} 38. Nd6 {[%emt 0:00:13]} Rf8 {[%emt 0:01:35]} (38... Rxd3 $19 39. Nxf7 Rg3 (39... Rxd4 $2 40. Re7 $19) 40. Rh5+ Kg6) 39. Bxe4+ $4 {[%emt 0:00:30][%mdl 8192]} (39. Nf5 $1 $11 {and White has nothing to worry.} Kg6 40. Ne7+ Kf6 41. Nf5) 39... dxe4 {[%emt 0:00:16]} 40. Nxe4 $11 {[%emt 0:00:12][%mdl 4096] Endgame. aiming for Ng5+. KRR-KRN} Rh1+ {[%emt 0:00:48]} 41. Kd2 {[%emt 0:01:54]} Rh2+ {[%emt 0:00:12]} 42. Ke1 {[%emt 0:02:45]} Rxc2 {[%emt 0:00:26][%cal Of4f3] And now ...f3! would win.} 43. Ng5+ {[%emt 0:00:33]} Kg6 {[%emt 0:00:17][%cal Of4f3]} 44. Nf3 {[%emt 0:01:50]} Rxa2 {[%emt 0:00:14] ...Rh8 is the strong threat.} 45. Re7 {[%emt 0:00:17]} Kf5 {[%emt 0:00:42] ...Rh8 would now be deadly.} 46. Rxb7 Re8+ {[%emt 0:00:21]} (46... Rh8 $142 47. Rf7+ Ke4 48. Nd2+ Kd3 (48... Kxd4 $2 49. Rxf4+ Kd3 50. Rf3+ Kc2 51. Nf1 $19) 49. Kf2 Rxd2+ (49... Kxd2 $2 50. d5 $19) 50. Kf3 Rh1 (50... Kxd4 $2 51. Rxf4+ Kd3 52. Rf7 $19) 51. d5 cxd5 52. Rf8 Rf1+ 53. Kg4 f3 54. Rxf3+ Rxf3 55. Kxf3 d4 56. b4 Rb2 57. Kg4 Ke4 (57... Rxb4 {leads to mate.} 58. Kf5 Ke3 59. Kf6 d3 60. Kg6 d2 61. Kg7 d1=Q 62. Kf6 Qd6+ 63. Kg5 Rb5+ 64. Kh4 Qh6+ 65. Kg4 Rg5#) 58. Kg5 d3 (58... Rxb4 59. Kh6 d3 60. Kh7 d2 61. Kg8 Rb7 62. Kf8 d1=Q 63. Ke8 Qh5+ 64. Kf8 Qh8#) 59. b5 d2 (59... Rxb5+ {is a self mate.} 60. Kg6 d2 61. Kg7 d1=Q 62. Kf7 Qh5+ 63. Kg8 Rb7 64. Kf8 Qh8#) 60. Kg6 Rxb5 (60... d1=R {gets mated.} 61. Kf7 Rxb5 62. Kg7 Rd7+ 63. Kf6 Rb6+ 64. Kg5 Rh7 65. Kg4 Rg6#) (60... d1=Q 61. Kf6 Qd6+ 62. Kg7 Qe7+ 63. Kh6 Kf5 64. Kh5 Qh7#) 61. Kh7 Rb6 (61... d1=R 62. Kg7 Rb7+ 63. Kg6 Rh1 64. Kg5 Rb6 65. Kg4 Rg6#) 62. Kg8 d1=Q (62... d1=R 63. Kf7 Rd7+ 64. Ke8 Rh7 65. Kf8 Rb8#) 63. Kh8 Qd7 64. Kg8 Rb8#) 47. Ne5 {[%emt 0:01:43]} Rh8 {[%emt 0:00:50][%cal Rh8h1] Black mates.} 48. Rf7+ {[%emt 0:00:30]} Ke6 {[%emt 0:00:43][%cal Rh8h1]} 49. Re7+ {[%emt 0:00:59]} Kxe7 {[%emt 0:00:17][%cal Rh8h1]} 50. Ng6+ {[%emt 0:00:05]} Kf6 {[%emt 0:00:07] Weighted Error Value: White=1.40/Black=0.94.  Loses game:     	White=3     	---        Missed win:     	White=1     	Black=1      Mistake:       	White=4     	Black=4      Inaccurate:     	White=2     	Black=2      OK:         	White=4     	Black=14     Best:        	White=2     	Black=3      Strong:       	White=1     	---} 0-1

[Event "ESP-ch U2000 2024"]
[Site "Albacete"]
[Date "2024.08.27"]
[Round "2.4"]
[White "Penarrubia Blasco, Jose Alfredo"]
[Black "Sierra Lopez, Yeray"]
[Result "1-0"]
[ECO "B24"]
[WhiteElo "1891"]
[BlackElo "1972"]
[Annotator "TA"]
[PlyCount "49"]
[EventDate "2024.08.27"]
[EventType "swiss"]
[EventCountry "ESP"]
[SourceTitle "playchess.com"]
[Source "ChessBase"]
[SourceQuality "1"]
[TimeControl "5400+30"]

{[%evp 13,49,0,0,-32,-30,-26,-28,-19,-27,-22,-36,-54,0,0,24,22,8,7,14,27,17,0,10,0,55,50,172,175,626,634,643,635,960,947,1491,998,29988,29989]} 1. e4 {[%emt 0:00:03]} c5 {[%emt 0:00:05]} 2. Nc3 {[%emt 0:00:05]} Nc6 {[%emt 0:00:09]} 3. Nf3 {[%emt 0:00:08]} g6 {[%emt 0:00:17]} 4. Bc4 {[%emt 0:00:17]} Bg7 {[%emt 0:00:10]} 5. d3 {[%emt 0:00:06]} d6 {[%emt 0:00:09]} 6. h3 {[%emt 0:00:08]} Nf6 {[%emt 0:00:19]} 7. O-O {[%emt 0:00:31]} O-O {[%emt 0:00:10]} 8. Nh2 {[%emt 0:00:22]} e6 {[%emt 0:00:34]} 9. Bg5 {[%emt 0:00:47]} h6 {[%emt 0:00:17]} 10. Bh4 {[%emt 0:01:50] Black has an edge.} g5 {[%emt 0:00:18]} 11. Bg3 {[%emt 0:00:07]} d5 {[%emt 0:00:23]} 12. Bb3 {[%emt 0:00:47]} Nd4 {[%emt 0:11:00]} (12... dxe4 $15 13. Nxe4 (13. dxe4 b5 $15) 13... Nxe4 14. dxe4 Bxb2) 13. f4 $11 {[%emt 0:01:19]} b5 {[%emt 0:10:00]} 14. fxg5 {[%emt 0:01:52]} hxg5 {[%emt 0:00:19]} 15. exd5 {[%emt 0:02:39]} Nxd5 {[%emt 0:07:15]} 16. Nxd5 {[%emt 0:00:46]} (16. Qh5 {is more complex.} Nxc3 17. bxc3 Nf5 18. Rxf5 exf5 19. Nf3) 16... exd5 {[%emt 0:00:39]} 17. c3 {[%emt 0:00:07]} Nxb3 {[%emt 0:13:07]} 18. axb3 {[%emt 0:00:34]} f5 {[%emt 0:15:58]} ({Better is} 18... a5 $1 $11) 19. Qh5 {[%emt 0:08:16] Nf3 would now be deadly.} Bd7 {[%emt 0:11:35] [#] This move loses the game for Black.} ({Black should try} 19... a5 $1 $14) 20. Nf3 $1 $18 {[%emt 0:04:58]} Bf6 {[%emt 0:02:18]} (20... Be8 21. Qxg5 Qxg5 22. Nxg5 Bd7) 21. Qg6+ {[%emt 0:03:15]} Kh8 {[%emt 0:00:02]} 22. Bd6 {[%emt 0:13:26][%csl LRc5,LRf8] Prevents Qe7.} Re8 {[%emt 0:03:10]} 23. Rae1 {[%emt 0:06:11]} c4 {[%emt 0:02:46]} 24. d4 {[%emt 0:08:01]} Be6 {[%emt 0:11:48] [#]} 25. Nxg5 $1 {[%mdl 512] Weighted Error Value: White=0.06 (flawless) /Black=1.05.  Mistake:       	---       	Black=4      OK:         	White=8     	Black=5      Best:        	White=1     	---        Strong:       	White=1     	---} 1-0

[Event "ESP-ch U2000 2024"]
[Site "Albacete"]
[Date "2024.08.27"]
[Round "2.5"]
[White "Bricio Garcia De La Torre, Jesus"]
[Black "Sierra Pena, Mario"]
[Result "1/2-1/2"]
[ECO "C02"]
[WhiteElo "1887"]
[BlackElo "1971"]
[Annotator "TA"]
[PlyCount "195"]
[EventDate "2024.08.27"]
[EventType "swiss"]
[EventCountry "ESP"]
[SourceTitle "playchess.com"]
[Source "ChessBase"]
[SourceQuality "1"]
[TimeControl "5400+30"]

{[%evp 27,195,0,0,-31,-25,-40,-12,-71,-71,-76,-93,-33,22,25,41,0,0,0,1,0,169,141,183,137,123,129,279,273,267,273,319,295,285,0,0,0,14,0,0,-41,-64,-46,-56,-44,-46,-73,-28,-51,-51,-21,-24,-80,-8,-8,-8,-8,0,0,0,0,0,0,0,0,0,0,0,0,0,0,0,0,0,0,0,0,0,0,0,0,0,0,0,0,0,0,0,0,0,0,0,0,0,0,0,0,0,0,0,0,0,0,0,0,0,0,0,0,0,0,0,0,0,0,0,0,0,0,0,0,0,0,0,0,0,0,0,0,0,0,0,0,0,0,0,0,0,0,0,0,0,0,0,0,0,0,0,0,0,0,0,0,0,0,0,0,0,0,0,0,0,0,0,0,0,0,0,0,0,0]} 1. e4 {[%emt 0:00:04]} e6 {[%emt 0:00:08]} 2. d4 {[%emt 0:00:12]} d5 {[%emt 0:00:04]} 3. e5 {[%emt 0:00:27]} c5 {[%emt 0:00:05]} 4. c3 {[%emt 0:00:05]} Qb6 {[%emt 0:00:07]} 5. Nf3 {[%emt 0:00:32]} Bd7 {[%emt 0:00:11]} 6. a3 {[%emt 0:01:55]} Bb5 {[%emt 0:00:48]} 7. Bxb5+ {[%emt 0:05:52]} Qxb5 {[%emt 0:00:03]} 8. b4 {[%emt 0:02:19] C02: French: Advance Variation.} cxd4 {[%emt 0:02:12]} 9. Nxd4 {[%emt 0:01:44]} Qb6 {[%emt 0:02:35]} 10. Be3 $146 {[%emt 0:01:11]} ({Predecessor:} 10. Nd2 Nc6 11. N2f3 Nge7 12. O-O Ng6 13. Re1 Rc8 14. Bb2 {½-½ Serbin,A (2010)-Malyuga,V (2010) Moscow Silent Winter 2006 (2)}) 10... Qc7 {[%emt 0:04:16]} 11. Qh5 {[%emt 0:07:34]} g6 {[%emt 0:06:24]} 12. Qe2 {[%emt 0:00:09]} Nc6 {[%emt 0:03:38]} 13. f4 {[%emt 0:04:41]} Nxd4 {[%emt 0:02:53]} 14. Bxd4 {[%emt 0:00:24]} Ne7 {[%emt 0:01:06]} 15. Ra2 {[%emt 0:10:15]} h5 {[%emt 0:02:13]} 16. Rc2 {[%emt 0:03:36]} a5 {[%emt 0:17:46]} 17. c4 {[%emt 0:09:45]} (17. O-O $11 {keeps the balance.}) 17... Rc8 $17 {[%emt 0:04:54]} 18. c5 {[%emt 0:16:34]} axb4 {[%emt 0:02:26]} 19. axb4 {[%emt 0:00:24]} Nf5 {[%emt 0:02:54]} (19... Nc6 $15 20. Bc3 b6) 20. Bf2 $11 {[%emt 0:01:32]} b6 {[%emt 0:00:53]} 21. Qb5+ {[%emt 0:01:30]} Qc6 {[%emt 0:00:21]} 22. Qxc6+ {[%emt 0:00:23]} Rxc6 {[%emt 0:00:04]} 23. b5 {[%emt 0:00:13]} Rc8 $2 {[%emt 0:04:27]} (23... Rxc5 $11 {and Black is okay.} 24. Bxc5 Bxc5) 24. c6 $18 {[%emt 0:00:19]} d4 {[%emt 0:00:19]} 25. Nd2 {[%emt 0:05:17]} (25. Ra2 $18) 25... Ra8 $16 {[%emt 0:04:46]} 26. O-O {[%emt 0:01:17]} Bb4 {[%emt 0:04:09]} (26... Kd8 $16) 27. Nc4 $18 {[%emt 0:05:14]} Bc5 {[%emt 0:02:09]} 28. Nd6+ {[%emt 0:02:14]} Ke7 {[%emt 0:00:15]} 29. Nb7 {[%emt 0:05:28]} Bb4 {[%emt 0:00:22]} 30. Be1 $2 {[%emt 0:04:17]} (30. Rd1 $18 Bc3 31. Nd6) 30... Bxe1 $11 {[%emt 0:09:35]} 31. Rxe1 {[%emt 0:00:02]} Ra4 {[%emt 0:00:06]} 32. Rd2 {[%emt 0:06:48]} Rha8 {[%emt 0:00:58]} 33. Red1 {[%emt 0:00:58]} Rb4 {[%emt 0:00:42]} 34. Nd6 {[%emt 0:00:19]} Nxd6 {[%emt 0:03:38]} 35. exd6+ {[%emt 0:00:01]} Kxd6 {[%emt 0:00:06]} 36. Rxd4+ {[%emt 0:01:07]} Rxd4 {[%emt 0:00:07]} 37. Rxd4+ {[%emt 0:00:01]} Kc5 {[%emt 0:00:21]} 38. Rd7 $1 {[%emt 0:00:41]} Kxb5 {[%emt 0:00:30]} (38... Rc8 {simplifies} 39. Rxf7 Kxb5 40. Rf6 Rxc6 41. Rxg6 Ka5) 39. c7 {[%emt 0:00:17] [#]} Kc6 {[%emt 0:01:45]} (39... Rc8 $1 $17 {White must now prevent ...Kc6.} 40. Rxf7 Ka4) 40. Rxf7 $11 {[%emt 0:00:35]} Rc8 {[%emt 0:01:36]} 41. Rf6 {[%emt 0:00:11]} Kd7 {[%emt 0:04:25]} 42. Rxg6 {[%emt 0:00:07]} Rxc7 {[%emt 0:00:08]} 43. f5 {[%emt 0:04:23]} Rc6 {[%emt 0:09:44]} 44. fxe6+ {[%emt 0:00:08]} Rxe6 {[%emt 0:00:21]} 45. Rg5 {[%emt 0:00:03]} Rh6 {[%emt 0:00:42]} 46. Kf2 {[%emt 0:00:15]} Kc6 {[%emt 0:00:41]} 47. Ke3 {[%emt 0:00:15]} h4 {[%emt 0:01:46]} 48. h3 {[%emt 0:00:31]} Rh8 {[%emt 0:02:13]} 49. Rg4 {[%emt 0:00:05]} Kc5 {[%emt 0:00:29]} 50. Kd3 {[%emt 0:00:11]} b5 {[%emt 0:01:13]} 51. Kc3 {[%emt 0:00:23]} Rh5 {[%emt 0:00:24]} 52. Kb3 {[%emt 0:00:12]} Re5 {[%emt 0:00:34]} 53. Kc3 {[%emt 0:00:55]} Re3+ {[%emt 0:01:06]} 54. Kd2 {[%emt 0:00:21]} Ra3 {[%emt 0:00:14]} 55. Kc2 {[%emt 0:00:16]} Ra4 {[%emt 0:00:56]} 56. Rg5+ {[%emt 0:00:08]} Kb6 {[%emt 0:00:21]} 57. Kb3 {[%emt 0:00:18]} Re4 {[%emt 0:00:06]} 58. Rg8 {[%emt 0:00:41]} Re3+ {[%emt 0:00:25]} 59. Kb4 {[%emt 0:00:10]} Re4+ {[%emt 0:00:06]} 60. Kb3 {[%emt 0:00:05]} Kc5 {[%emt 0:01:47]} 61. Rg5+ {[%emt 0:00:40]} Kb6 {[%emt 0:00:10]} 62. Rg8 {[%emt 0:00:06]} Rf4 {[%emt 0:00:56]} 63. Kc3 {[%emt 0:00:53]} Rc4+ {[%emt 0:00:12]} 64. Kb3 {[%emt 0:00:09]} Re4 {[%emt 0:00:01]} 65. Kc3 {[%emt 0:00:07]} Ka5 {[%emt 0:00:22]} 66. Ra8+ {[%emt 0:00:07]} Kb6 {[%emt 0:00:10]} 67. Rg8 {[%emt 0:00:02]} Rc4+ {[%emt 0:00:25]} 68. Kb3 {[%emt 0:00:01]} Re4 {[%emt 0:00:51]} 69. Kc3 {[%emt 0:00:11]} Ra4 {[%emt 0:00:16]} 70. Kb3 {[%emt 0:00:10]} Rf4 {[%emt 0:00:27]} 71. Kc3 {[%emt 0:00:05]} Kc5 {[%emt 0:00:21]} 72. Rg5+ {[%emt 0:00:07]} Kb6 {[%emt 0:00:04]} 73. Rg8 {[%emt 0:00:05]} Rc4+ {[%emt 0:00:27]} 74. Kb3 {[%emt 0:00:09]} Rf4 {[%emt 0:01:20]} 75. Kc3 {[%emt 0:00:09]} Re4 {[%emt 0:00:08]} 76. Kb3 {[%emt 0:00:10]} Kc5 {[%emt 0:00:27]} 77. Rg5+ {[%emt 0:00:22]} Kd4 {[%emt 0:02:00]} 78. Rxb5 {[%emt 0:00:02]} Ke3 {[%emt 0:00:22]} 79. Rg5 {[%emt 0:02:17]} Kf2 {[%emt 0:00:25]} 80. Kc3 {[%emt 0:00:04]} Re3+ {[%emt 0:00:17]} 81. Kd2 {[%emt 0:00:38]} Rg3 {[%emt 0:00:14]} 82. Rxg3 {[%emt 0:02:21]} hxg3 {[%emt 0:01:05]} 83. h4 {[%emt 0:00:05]} Kxg2 {[%emt 0:00:02]} 84. h5 $1 {[%emt 0:00:03]} Kf3 {[%emt 0:00:09]} (84... Kf1 $5 85. h6 $8 g2 $11) 85. h6 {[%emt 0:00:04]} g2 {[%emt 0:00:11]} 86. h7 {[%emt 0:00:05]} g1=Q {[%emt 0:00:16]} 87. h8=Q {[%emt 0:00:06]} Qg2+ {[%emt 0:00:08]} 88. Kd3 {[%emt 0:00:22]} Qg6+ {[%emt 0:00:06]} 89. Kc4 {[%emt 0:00:13]} Qa6+ {[%emt 0:00:06]} 90. Kb3 {[%emt 0:00:32]} Qb5+ {[%emt 0:00:11]} 91. Kc2 {[%emt 0:00:08]} Qa4+ {[%emt 0:00:06]} 92. Kb1 {[%emt 0:00:40]} Qd1+ {[%emt 0:00:07]} 93. Ka2 {[%emt 0:00:12]} Qd5+ {[%emt 0:00:48]} 94. Kb1 {[%emt 0:00:08]} Qb3+ {[%emt 0:00:32]} 95. Qb2 {[%emt 0:00:10]} Qd3+ {[%emt 0:00:16]} 96. Ka2 {[%emt 0:00:12]} Qd5+ {[%emt 0:00:08]} 97. Qb3+ {[%emt 0:00:06]} Qxb3+ {[%emt 0:00:01]} 98. Kxb3 {[%emt 0:00:01]} 1/2-1/2